[Event "Late-Titled-Tuesday-Blitz-February-20-2024"]
[Site "Chess.com"]
[Date "2024.02.20"]
[Round "6"]
[White "zajka-molotok"]
[Black "Alphafischer2019"]
[Result "0-1"]
[WhiteElo "2517"]
[BlackElo "2676"]
[TimeControl "180+1"]
[EndTime "15:05:12 PST"]
[Termination "Alphafischer2019 won on time"]

1. e4 {[%clk 0:02:57.8]} 1... c5 {[%clk 0:02:58.9]} 2. Nf3 {[%clk 0:02:57.4]}
2... Nc6 {[%clk 0:02:58.5]} 3. Bb5 {[%clk 0:02:53.5]} 3... Nf6 {[%clk
0:02:57.5]} 4. e5 {[%clk 0:02:49]} 4... Nd5 {[%clk 0:02:52.6]} 5. Nc3 {[%clk
0:02:39.1]} 5... Nc7 {[%clk 0:02:45.7]} 6. Bxc6 {[%clk 0:02:38.3]} 6... dxc6
{[%clk 0:02:45.3]} 7. h3 {[%clk 0:02:37.4]} 7... g6 {[%clk 0:02:38.5]} 8. O-O
{[%clk 0:02:36.3]} 8... Bg7 {[%clk 0:02:39]} 9. d3 {[%clk 0:02:36.8]} 9... O-O
{[%clk 0:02:36.4]} 10. Bf4 {[%clk 0:02:23.8]} 10... Ne6 {[%clk 0:02:32.3]} 11.
Bg3 {[%clk 0:02:23.7]} 11... Qb6 {[%clk 0:02:13.5]} 12. Rb1 {[%clk 0:02:18.8]}
12... Rd8 {[%clk 0:02:11.3]} 13. Qe2 {[%clk 0:02:14.3]} 13... Qa5 {[%clk
0:02:02.7]} 14. a3 {[%clk 0:01:43.3]} 14... Qc7 {[%clk 0:01:50.9]} 15. Ne4
{[%clk 0:01:39.9]} 15... b6 {[%clk 0:01:50.7]} 16. h4 {[%clk 0:01:33.2]} 16...
h6 {[%clk 0:01:46.4]} 17. Rfe1 {[%clk 0:01:26.8]} 17... a5 {[%clk 0:01:42.7]}
18. Qe3 {[%clk 0:01:23.9]} 18... a4 {[%clk 0:01:42.3]} 19. Rbd1 {[%clk
0:01:02.6]} 19... Qd7 {[%clk 0:01:41.2]} 20. Nh2 {[%clk 0:00:52.4]} 20... Nd4
{[%clk 0:01:38.4]} 21. Rc1 {[%clk 0:00:46.5]} 21... Nf5 {[%clk 0:01:14.7]} 22.
Qf4 {[%clk 0:00:46]} 22... Qd4 {[%clk 0:01:14.8]} 23. Qf3 {[%clk 0:00:16.5]}
23... Qxb2 {[%clk 0:01:07.2]} 24. h5 {[%clk 0:00:13.6]} 24... g5 {[%clk
0:01:05.1]} 25. Rb1 {[%clk 0:00:09.2]} 25... Qxc2 {[%clk 0:01:03]} 26. Rxb6
{[%clk 0:00:09.1]} 26... Be6 {[%clk 0:01:02.2]} 27. Rxc6 {[%clk 0:00:06.5]}
27... Nd4 {[%clk 0:01:02.7]} 28. Rxc5 {[%clk 0:00:02.2]} 28... Nxf3+ {[%clk
0:01:01.9]} 29. Nxf3 {[%clk 0:00:02.1]} 29... Qxd3 {[%clk 0:01:02.5]} 0-1

[Event "Late-Titled-Tuesday-Blitz-February-20-2024"]
[Site "Chess.com"]
[Date "2024.02.20"]
[Round "6"]
[White "rionelG"]
[Black "emeli_chess"]
[Result "1-0"]
[WhiteElo "2229"]
[BlackElo "2411"]
[TimeControl "180+1"]
[EndTime "15:05:14 PST"]
[Termination "rionelG won by resignation"]

1. e4 {[%clk 0:03:00.9]} 1... c5 {[%clk 0:02:59.7]} 2. Nf3 {[%clk 0:03:00.3]}
2... d6 {[%clk 0:02:59.8]} 3. d4 {[%clk 0:02:59.9]} 3... cxd4 {[%clk 0:03:00.1]}
4. Nxd4 {[%clk 0:03:00.8]} 4... Nf6 {[%clk 0:03:00.2]} 5. Nc3 {[%clk 0:03:01.4]}
5... a6 {[%clk 0:03:00.5]} 6. Bg5 {[%clk 0:03:02.1]} 6... e6 {[%clk 0:03:00.2]}
7. f4 {[%clk 0:03:02]} 7... Nbd7 {[%clk 0:02:59.8]} 8. Qe2 {[%clk 0:03:02.1]}
8... Qc7 {[%clk 0:02:57.7]} 9. O-O-O {[%clk 0:03:02]} 9... b5 {[%clk 0:02:56]}
10. a3 {[%clk 0:02:58.5]} 10... Bb7 {[%clk 0:02:55.5]} 11. g4 {[%clk 0:02:53.3]}
11... Qb6 {[%clk 0:02:42.4]} 12. Bg2 {[%clk 0:02:34.4]} 12... Rc8 {[%clk
0:02:39.3]} 13. Bxf6 {[%clk 0:02:23]} 13... gxf6 {[%clk 0:02:19.5]} 14. h4
{[%clk 0:01:45.1]} 14... h5 {[%clk 0:02:15.2]} 15. g5 {[%clk 0:01:44.5]} 15...
Rxc3 {[%clk 0:02:09.1]} 16. bxc3 {[%clk 0:01:44.2]} 16... Nc5 {[%clk 0:01:59]}
17. Rh3 {[%clk 0:01:29.4]} 17... Bg7 {[%clk 0:01:45.4]} 18. Nb3 {[%clk 0:01:17]}
18... Na4 {[%clk 0:01:38.3]} 19. Qe3 {[%clk 0:01:16.7]} 19... Qxe3+ {[%clk
0:01:34.3]} 20. Rxe3 {[%clk 0:01:15.6]} 20... f5 {[%clk 0:01:34.6]} 21. Nd4
{[%clk 0:01:08.9]} 21... Ke7 {[%clk 0:01:17.4]} 22. Nxf5+ {[%clk 0:01:03.2]}
22... exf5 {[%clk 0:01:06.8]} 23. exf5+ {[%clk 0:01:04.1]} 23... Kd7 {[%clk
0:01:03.9]} 24. Bxb7 {[%clk 0:00:59.5]} 24... Bxc3 {[%clk 0:01:03.3]} 25. Red3
{[%clk 0:00:52]} 25... Kc7 {[%clk 0:00:56]} 26. Bd5 {[%clk 0:00:43.9]} 26... Rf8
{[%clk 0:00:43.3]} 27. Bb3 {[%clk 0:00:42.9]} 27... Bb2+ {[%clk 0:00:42.1]} 28.
Kb1 {[%clk 0:00:42.8]} 1-0

[Event "Late-Titled-Tuesday-Blitz-February-20-2024"]
[Site "Chess.com"]
[Date "2024.02.20"]
[Round "6"]
[White "LUISMIGUELOV"]
[Black "viniciusrego"]
[Result "0-1"]
[WhiteElo "2184"]
[BlackElo "2411"]
[TimeControl "180+1"]
[EndTime "15:05:22 PST"]
[Termination "viniciusrego won by checkmate"]

1. d4 {[%clk 0:03:00.9]} 1... g6 {[%clk 0:02:56.9]} 2. c3 {[%clk 0:03:00.5]}
2... Bg7 {[%clk 0:02:56.3]} 3. Bg5 {[%clk 0:03:01]} 3... b6 {[%clk 0:02:56.1]}
4. e4 {[%clk 0:02:55.4]} 4... Bb7 {[%clk 0:02:56.5]} 5. Nd2 {[%clk 0:02:53.8]}
5... h6 {[%clk 0:02:55.6]} 6. Bh4 {[%clk 0:02:52.7]} 6... d6 {[%clk 0:02:56.1]}
7. Bc4 {[%clk 0:02:48.9]} 7... Nd7 {[%clk 0:02:55.3]} 8. f4 {[%clk 0:02:44.2]}
8... c5 {[%clk 0:02:53.3]} 9. d5 {[%clk 0:02:43.1]} 9... a6 {[%clk 0:02:50]} 10.
a4 {[%clk 0:02:42.3]} 10... Ngf6 {[%clk 0:02:48.8]} 11. Ngf3 {[%clk 0:02:37]}
11... g5 {[%clk 0:02:31.8]} 12. fxg5 {[%clk 0:02:21.5]} 12... hxg5 {[%clk
0:02:32.7]} 13. Bxg5 {[%clk 0:02:21.1]} 13... Ng4 {[%clk 0:02:31.4]} 14. Qe2
{[%clk 0:02:16.3]} 14... Qc7 {[%clk 0:02:15.8]} 15. h3 {[%clk 0:02:15.2]} 15...
Be5 {[%clk 0:02:08.5]} 16. O-O-O {[%clk 0:02:05.3]} 16... Ngf6 {[%clk
0:01:52.5]} 17. Nxe5 {[%clk 0:02:03.2]} 17... dxe5 {[%clk 0:01:47.8]} 18. Nf3
{[%clk 0:01:44.5]} 18... Nh5 {[%clk 0:01:46.5]} 19. Rhe1 {[%clk 0:01:33.3]}
19... f6 {[%clk 0:01:45.6]} 20. Be3 {[%clk 0:01:24.3]} 20... Ng3 {[%clk
0:01:39.3]} 21. Qf2 {[%clk 0:01:22.8]} 21... Nxe4 {[%clk 0:01:38.6]} 22. Qg1
{[%clk 0:01:16.7]} 22... Nd6 {[%clk 0:01:38.6]} 23. Bb3 {[%clk 0:01:11.5]} 23...
O-O-O {[%clk 0:01:37.4]} 24. a5 {[%clk 0:01:04.2]} 24... b5 {[%clk 0:01:37.1]}
25. Bc2 {[%clk 0:00:55.3]} 25... Rdg8 {[%clk 0:01:33.9]} 26. g4 {[%clk
0:00:53.9]} 26... Rxh3 {[%clk 0:01:30.3]} 27. Qg2 {[%clk 0:00:48.3]} 27... Rhh8
{[%clk 0:01:26.9]} 28. Qf2 {[%clk 0:00:46.9]} 28... Rxg4 {[%clk 0:01:25]} 29.
Nd2 {[%clk 0:00:35.4]} 29... Bxd5 {[%clk 0:01:14.4]} 30. Bf5 {[%clk 0:00:29.6]}
30... Rg2 {[%clk 0:01:12.7]} 31. Qf1 {[%clk 0:00:22.5]} 31... Rhh2 {[%clk
0:01:04.3]} 32. Bxd7+ {[%clk 0:00:17.1]} 32... Kxd7 {[%clk 0:01:04.3]} 33. Nf3
{[%clk 0:00:16.5]} 33... Qxa5 {[%clk 0:01:00.9]} 34. Nxh2 {[%clk 0:00:01.6]}
34... Qa1# {[%clk 0:00:59.1]} 0-1

[Event "Late-Titled-Tuesday-Blitz-February-20-2024"]
[Site "Chess.com"]
[Date "2024.02.20"]
[Round "6"]
[White "MKlose11"]
[Black "PacingRope"]
[Result "0-1"]
[WhiteElo "2614"]
[BlackElo "2908"]
[TimeControl "180+1"]
[EndTime "15:05:26 PST"]
[Termination "PacingRope won by resignation"]

1. e4 {[%clk 0:02:58.9]} 1... c5 {[%clk 0:02:57.7]} 2. Nc3 {[%clk 0:02:58]} 2...
Nc6 {[%clk 0:02:57.1]} 3. g3 {[%clk 0:02:58.9]} 3... g6 {[%clk 0:02:56.2]} 4.
Bg2 {[%clk 0:02:57.6]} 4... Bg7 {[%clk 0:02:55.8]} 5. d3 {[%clk 0:02:58]} 5...
d6 {[%clk 0:02:56.5]} 6. Nge2 {[%clk 0:02:57]} 6... e6 {[%clk 0:02:57.1]} 7. Be3
{[%clk 0:02:57.2]} 7... Nge7 {[%clk 0:02:57.5]} 8. Qd2 {[%clk 0:02:57.6]} 8...
O-O {[%clk 0:02:56]} 9. Bh6 {[%clk 0:02:57.7]} 9... f6 {[%clk 0:02:37]} 10. Bxg7
{[%clk 0:02:55.2]} 10... Kxg7 {[%clk 0:02:37.9]} 11. O-O {[%clk 0:02:55.3]}
11... Rb8 {[%clk 0:02:34.7]} 12. d4 {[%clk 0:02:55.5]} 12... a6 {[%clk
0:02:28.4]} 13. Rad1 {[%clk 0:02:50.8]} 13... cxd4 {[%clk 0:02:24.6]} 14. Nxd4
{[%clk 0:02:49.5]} 14... Ne5 {[%clk 0:02:24.9]} 15. b3 {[%clk 0:02:42.2]} 15...
Qc7 {[%clk 0:02:19.9]} 16. f4 {[%clk 0:02:38.7]} 16... Nf7 {[%clk 0:02:18.5]}
17. Nce2 {[%clk 0:02:36.6]} 17... e5 {[%clk 0:02:15.9]} 18. Nf3 {[%clk 0:02:34]}
18... Be6 {[%clk 0:02:12.6]} 19. c4 {[%clk 0:02:34.1]} 19... b5 {[%clk
0:02:09.4]} 20. cxb5 {[%clk 0:02:33.7]} 20... axb5 {[%clk 0:02:10.3]} 21. Nc3
{[%clk 0:02:33.7]} 21... b4 {[%clk 0:02:07.5]} 22. Nd5 {[%clk 0:02:32.9]} 22...
Nxd5 {[%clk 0:02:04.8]} 23. exd5 {[%clk 0:02:33.8]} 23... Bf5 {[%clk 0:02:05.4]}
24. Rc1 {[%clk 0:02:27.2]} 24... Qa7+ {[%clk 0:02:03.4]} 25. Kh1 {[%clk
0:02:27.6]} 25... Rfc8 {[%clk 0:01:57.6]} 26. fxe5 {[%clk 0:02:22]} 26... dxe5
{[%clk 0:01:49.9]} 27. d6 {[%clk 0:02:05.5]} 27... Qd7 {[%clk 0:01:39.8]} 28.
Rxc8 {[%clk 0:01:58]} 28... Rxc8 {[%clk 0:01:40.7]} 29. Qxb4 {[%clk 0:01:52.4]}
29... Qxd6 {[%clk 0:01:35.2]} 30. Qxd6 {[%clk 0:01:47.5]} 30... Nxd6 {[%clk
0:01:36.1]} 31. Nh4 {[%clk 0:01:41.5]} 31... Be6 {[%clk 0:01:31.9]} 32. Rd1
{[%clk 0:01:39.5]} 32... Nb5 {[%clk 0:01:25.8]} 33. Nf3 {[%clk 0:01:39.6]} 33...
e4 {[%clk 0:01:23.7]} 34. Nd2 {[%clk 0:01:21]} 34... Rd8 {[%clk 0:01:23.6]} 35.
Bxe4 {[%clk 0:01:17.9]} 35... Nc3 {[%clk 0:01:22.6]} 36. Rc1 {[%clk 0:01:18.2]}
36... Nxe4 {[%clk 0:01:22.7]} 37. Nxe4 {[%clk 0:01:17.7]} 37... Bd5 {[%clk
0:01:23.2]} 38. Rc7+ {[%clk 0:01:16.3]} 38... Kh6 {[%clk 0:01:23.3]} 39. Kg1
{[%clk 0:01:15]} 39... Bxe4 {[%clk 0:01:23.4]} 40. a4 {[%clk 0:01:14.1]} 40...
Rd2 {[%clk 0:01:20.9]} 41. a5 {[%clk 0:01:11.4]} 41... Rb2 {[%clk 0:01:14.4]}
42. Rc4 {[%clk 0:01:05.7]} 42... Bd5 {[%clk 0:01:09.5]} 43. Rc5 {[%clk
0:01:05.2]} 43... Bxb3 {[%clk 0:01:03.9]} 44. Rb5 {[%clk 0:01:05.2]} 44... Rb1+
{[%clk 0:01:04.1]} 45. Kf2 {[%clk 0:01:05.5]} 45... Bc2 {[%clk 0:01:04.8]} 46.
Rc5 {[%clk 0:01:05.3]} 46... Be4 {[%clk 0:01:03.6]} 47. a6 {[%clk 0:01:05.6]}
47... Ra1 {[%clk 0:01:01.1]} 48. Ke3 {[%clk 0:01:03.6]} 48... f5 {[%clk
0:01:00.5]} 49. h4 {[%clk 0:01:01.5]} 49... Rxa6 {[%clk 0:01:00]} 50. Kf4 {[%clk
0:01:00.3]} 50... Ra3 {[%clk 0:00:52.9]} 51. Rc7 {[%clk 0:00:57.9]} 51... Rf3+
{[%clk 0:00:51.8]} 52. Ke5 {[%clk 0:00:58.1]} 52... Rxg3 {[%clk 0:00:52.4]} 53.
Kf6 {[%clk 0:00:58.4]} 53... Ra3 {[%clk 0:00:51.1]} 54. h5 {[%clk 0:00:58.7]}
54... Kxh5 {[%clk 0:00:50.6]} 55. Rxh7+ {[%clk 0:00:58.4]} 55... Kg4 {[%clk
0:00:51.2]} 56. Kxg6 {[%clk 0:00:59.3]} 56... Ra6+ {[%clk 0:00:50.9]} 57. Kf7
{[%clk 0:00:58]} 57... Ra7+ {[%clk 0:00:51.5]} 0-1

[Event "Late-Titled-Tuesday-Blitz-February-20-2024"]
[Site "Chess.com"]
[Date "2024.02.20"]
[Round "6"]
[White "vrekhson"]
[Black "ukchessbomber"]
[Result "0-1"]
[WhiteElo "2341"]
[BlackElo "2609"]
[TimeControl "180+1"]
[EndTime "15:05:30 PST"]
[Termination "ukchessbomber won by checkmate"]

1. e4 {[%clk 0:02:53.1]} 1... a5 {[%clk 0:03:00.9]} 2. d4 {[%clk 0:02:52.1]}
2... h5 {[%clk 0:03:01.8]} 3. Nc3 {[%clk 0:02:50.5]} 3... g6 {[%clk 0:03:02.3]}
4. Be3 {[%clk 0:02:47.3]} 4... Bg7 {[%clk 0:03:03.2]} 5. Qd2 {[%clk 0:02:47.1]}
5... d6 {[%clk 0:03:04.1]} 6. f4 {[%clk 0:02:44.2]} 6... Bd7 {[%clk 0:03:04.2]}
7. Nf3 {[%clk 0:02:44.3]} 7... Nf6 {[%clk 0:03:02.6]} 8. e5 {[%clk 0:02:44]}
8... Ng4 {[%clk 0:03:02.6]} 9. Bg1 {[%clk 0:02:43.6]} 9... c6 {[%clk 0:02:58.7]}
10. exd6 {[%clk 0:02:37.5]} 10... exd6 {[%clk 0:02:58.6]} 11. O-O-O {[%clk
0:02:37.5]} 11... O-O {[%clk 0:02:56.6]} 12. h3 {[%clk 0:02:30]} 12... Nf6
{[%clk 0:02:56.7]} 13. d5 {[%clk 0:02:24.5]} 13... cxd5 {[%clk 0:01:36]} 14.
Nxd5 {[%clk 0:02:11.6]} 14... Nxd5 {[%clk 0:01:36.9]} 15. Qxd5 {[%clk
0:02:11.9]} 15... Nc6 {[%clk 0:01:37.8]} 16. Qxd6 {[%clk 0:02:08.8]} 16... Be6
{[%clk 0:01:37.7]} 17. a3 {[%clk 0:01:53.5]} 17... Qf6 {[%clk 0:01:33.7]} 18.
Bd4 {[%clk 0:01:42]} 18... Nxd4 {[%clk 0:01:33.5]} 19. Qxd4 {[%clk 0:01:41]}
19... Qf5 {[%clk 0:01:33.6]} 20. Qe3 {[%clk 0:01:13.5]} 20... Rac8 {[%clk
0:01:33.2]} 21. Bd3 {[%clk 0:01:12.4]} 21... Qd5 {[%clk 0:01:33]} 22. Ne5 {[%clk
0:00:44.3]} 22... Qa2 {[%clk 0:01:18.1]} 23. Kd2 {[%clk 0:00:27.6]} 23... Qxb2
{[%clk 0:01:17.2]} 24. Nxg6 {[%clk 0:00:27.9]} 24... Qc3+ {[%clk 0:01:06.1]} 25.
Ke2 {[%clk 0:00:27.9]} 25... Rfe8 {[%clk 0:01:03.4]} 26. Ne5 {[%clk 0:00:22]}
26... f6 {[%clk 0:00:43.5]} 27. Qe4 {[%clk 0:00:16.7]} 27... fxe5 {[%clk
0:00:36.4]} 28. Qh7+ {[%clk 0:00:16.9]} 28... Kf8 {[%clk 0:00:37.1]} 29. fxe5
{[%clk 0:00:14.3]} 29... Qxe5+ {[%clk 0:00:36.6]} 30. Kf2 {[%clk 0:00:12.4]}
30... Qf4+ {[%clk 0:00:30]} 31. Kg1 {[%clk 0:00:12.1]} 31... Bd4# {[%clk
0:00:30.2]} 0-1

[Event "Late-Titled-Tuesday-Blitz-February-20-2024"]
[Site "Chess.com"]
[Date "2024.02.20"]
[Round "6"]
[White "prime-morty"]
[Black "STAYFlow"]
[Result "1-0"]
[WhiteElo "2555"]
[BlackElo "2377"]
[TimeControl "180+1"]
[EndTime "15:05:30 PST"]
[Termination "prime-morty won on time"]

1. c4 {[%clk 0:03:00.9]} 1... Nf6 {[%clk 0:02:55.4]} 2. Nc3 {[%clk 0:02:59.8]}
2... c6 {[%clk 0:02:53.1]} 3. e4 {[%clk 0:03:00]} 3... e5 {[%clk 0:02:51.5]} 4.
Nf3 {[%clk 0:02:59.6]} 4... Qc7 {[%clk 0:02:43.3]} 5. d4 {[%clk 0:02:59.1]} 5...
d6 {[%clk 0:02:37.6]} 6. Be2 {[%clk 0:02:56.4]} 6... Be7 {[%clk 0:02:35.1]} 7.
O-O {[%clk 0:02:56.1]} 7... O-O {[%clk 0:02:35.2]} 8. h3 {[%clk 0:02:56.6]} 8...
Re8 {[%clk 0:02:32.5]} 9. Be3 {[%clk 0:02:56.5]} 9... Bf8 {[%clk 0:02:32]} 10.
Rc1 {[%clk 0:02:55.6]} 10... Nbd7 {[%clk 0:02:30.8]} 11. b4 {[%clk 0:02:55.7]}
11... b6 {[%clk 0:02:06.9]} 12. b5 {[%clk 0:02:48.2]} 12... c5 {[%clk
0:01:57.9]} 13. dxe5 {[%clk 0:02:47.4]} 13... Nxe5 {[%clk 0:01:48.5]} 14. Nd2
{[%clk 0:02:39]} 14... Bb7 {[%clk 0:01:37.6]} 15. f4 {[%clk 0:02:38.3]} 15...
Ng6 {[%clk 0:01:37.8]} 16. Bd3 {[%clk 0:02:21.3]} 16... d5 {[%clk 0:01:33.2]}
17. cxd5 {[%clk 0:02:19]} 17... Nxd5 {[%clk 0:01:28.2]} 18. Nxd5 {[%clk
0:02:19.1]} 18... Bxd5 {[%clk 0:01:28.1]} 19. a4 {[%clk 0:02:09]} 19... Rad8
{[%clk 0:01:25.5]} 20. Qc2 {[%clk 0:02:07.3]} 20... Ba8 {[%clk 0:01:17.7]} 21.
Rce1 {[%clk 0:02:01.6]} 21... Qd7 {[%clk 0:01:06.3]} 22. Bc4 {[%clk 0:02:00.9]}
22... Kh8 {[%clk 0:00:57.5]} 23. e5 {[%clk 0:01:47.7]} 23... f6 {[%clk
0:00:37.6]} 24. e6 {[%clk 0:01:36.3]} 24... Qb7 {[%clk 0:00:29.1]} 25. Nf3
{[%clk 0:01:35.5]} 25... Ne7 {[%clk 0:00:19.9]} 26. Bc1 {[%clk 0:01:22.6]} 26...
Nd5 {[%clk 0:00:18.7]} 27. Qf5 {[%clk 0:01:11.5]} 27... Be7 {[%clk 0:00:14.5]}
28. Rd1 {[%clk 0:01:02]} 28... Nc7 {[%clk 0:00:14.3]} 29. Rd7 {[%clk 0:00:55.3]}
29... Rxd7 {[%clk 0:00:12.8]} 30. exd7 {[%clk 0:00:55.7]} 30... Rd8 {[%clk
0:00:13]} 31. Re1 {[%clk 0:00:52.5]} 31... Bf8 {[%clk 0:00:13.5]} 32. Bd3 {[%clk
0:00:50.6]} 32... g6 {[%clk 0:00:09]} 33. Qxf6+ {[%clk 0:00:50.5]} 33... Bg7
{[%clk 0:00:09.1]} 34. Qxd8+ {[%clk 0:00:50.9]} 1-0

[Event "Late-Titled-Tuesday-Blitz-February-20-2024"]
[Site "Chess.com"]
[Date "2024.02.20"]
[Round "6"]
[White "Fandorine"]
[Black "DeArron_Fox"]
[Result "1-0"]
[WhiteElo "2917"]
[BlackElo "2511"]
[TimeControl "180+1"]
[EndTime "15:05:32 PST"]
[Termination "Fandorine won by resignation"]

1. d4 {[%clk 0:03:00.9]} 1... d5 {[%clk 0:02:59.8]} 2. c4 {[%clk 0:02:59.7]}
2... e6 {[%clk 0:02:59.6]} 3. Nf3 {[%clk 0:03:00]} 3... Nf6 {[%clk 0:03:00]} 4.
Qc2 {[%clk 0:02:59.8]} 4... Be7 {[%clk 0:02:58.7]} 5. Bg5 {[%clk 0:02:59.4]}
5... O-O {[%clk 0:02:58.7]} 6. Nc3 {[%clk 0:02:57.1]} 6... h6 {[%clk 0:02:55.6]}
7. Bxf6 {[%clk 0:02:56.8]} 7... Bxf6 {[%clk 0:02:56.5]} 8. e3 {[%clk 0:02:57.2]}
8... a6 {[%clk 0:02:39.9]} 9. cxd5 {[%clk 0:02:44.2]} 9... exd5 {[%clk
0:02:39.5]} 10. Be2 {[%clk 0:02:44.9]} 10... c6 {[%clk 0:02:38.1]} 11. O-O
{[%clk 0:02:44.4]} 11... g6 {[%clk 0:02:30.9]} 12. b4 {[%clk 0:02:42.7]} 12...
Bf5 {[%clk 0:02:27.6]} 13. Bd3 {[%clk 0:02:38.9]} 13... Bxd3 {[%clk 0:02:27.4]}
14. Qxd3 {[%clk 0:02:38.9]} 14... Nd7 {[%clk 0:02:07.6]} 15. a4 {[%clk
0:02:37.4]} 15... Nb6 {[%clk 0:01:45.1]} 16. a5 {[%clk 0:02:31.2]} 16... Nc4
{[%clk 0:01:42.2]} 17. Na4 {[%clk 0:02:27.8]} 17... Qe7 {[%clk 0:01:17.1]} 18.
Nc5 {[%clk 0:02:18]} 18... Nd6 {[%clk 0:00:47.8]} 19. Rab1 {[%clk 0:02:11.5]}
19... Bg7 {[%clk 0:00:39.5]} 20. Nd2 {[%clk 0:02:02]} 20... Rae8 {[%clk
0:00:32.6]} 21. Rfe1 {[%clk 0:02:00.8]} 21... f5 {[%clk 0:00:27.7]} 22. f4
{[%clk 0:01:59.8]} 22... g5 {[%clk 0:00:23.1]} 23. g3 {[%clk 0:01:29.1]} 23...
Ne4 {[%clk 0:00:14.4]} 24. Ndxe4 {[%clk 0:01:25.2]} 24... fxe4 {[%clk
0:00:15.3]} 25. Qe2 {[%clk 0:01:24.7]} 25... Qf7 {[%clk 0:00:05.3]} 26. Kh1
{[%clk 0:01:18.3]} 26... h5 {[%clk 0:00:03.2]} 27. Rf1 {[%clk 0:01:05.8]} 27...
Re7 {[%clk 0:00:03.1]} 28. fxg5 {[%clk 0:00:57.9]} 28... Qg6 {[%clk 0:00:03.6]}
29. Rxf8+ {[%clk 0:00:58.1]} 29... Bxf8 {[%clk 0:00:04.5]} 30. h4 {[%clk
0:00:57.7]} 30... Rf7 {[%clk 0:00:05.1]} 31. Rf1 {[%clk 0:00:57.5]} 31... Bxc5
{[%clk 0:00:04.9]} 32. bxc5 {[%clk 0:00:57]} 32... Rf5 {[%clk 0:00:02.2]} 33.
Kg2 {[%clk 0:00:52.5]} 33... Qf7 {[%clk 0:00:02.1]} 34. Rxf5 {[%clk 0:00:51.9]}
34... Qxf5 {[%clk 0:00:03]} 35. Qxh5 {[%clk 0:00:52]} 35... Qf8 {[%clk
0:00:01.7]} 36. Qg6+ {[%clk 0:00:51.7]} 1-0

[Event "Late-Titled-Tuesday-Blitz-February-20-2024"]
[Site "Chess.com"]
[Date "2024.02.20"]
[Round "6"]
[White "Atousa"]
[Black "Josetricks"]
[Result "0-1"]
[WhiteElo "2454"]
[BlackElo "2408"]
[TimeControl "180+1"]
[EndTime "15:05:33 PST"]
[Termination "Josetricks won by resignation"]

1. e4 {[%clk 0:02:06.3]} 1... g6 {[%clk 0:02:57.9]} 2. d4 {[%clk 0:02:04.8]}
2... Bg7 {[%clk 0:02:58]} 3. Nf3 {[%clk 0:01:58.3]} 3... c6 {[%clk 0:02:58.1]}
4. Nc3 {[%clk 0:01:57.2]} 4... d5 {[%clk 0:02:58.3]} 5. e5 {[%clk 0:01:53.7]}
5... f6 {[%clk 0:02:57.9]} 6. exf6 {[%clk 0:01:52.9]} 6... Nxf6 {[%clk
0:02:57.9]} 7. Bd3 {[%clk 0:01:52]} 7... Bg4 {[%clk 0:02:57.7]} 8. O-O {[%clk
0:01:51.3]} 8... O-O {[%clk 0:02:57.4]} 9. Be2 {[%clk 0:01:47.7]} 9... Nbd7
{[%clk 0:02:54.5]} 10. Bg5 {[%clk 0:01:45.8]} 10... Qc7 {[%clk 0:02:43.4]} 11.
h3 {[%clk 0:01:42.3]} 11... Bxf3 {[%clk 0:02:43.5]} 12. Bxf3 {[%clk 0:01:42.2]}
12... e5 {[%clk 0:02:44.4]} 13. dxe5 {[%clk 0:01:38.7]} 13... Nxe5 {[%clk
0:02:45]} 14. Bf4 {[%clk 0:01:28.8]} 14... Nxf3+ {[%clk 0:02:30.5]} 15. Qxf3
{[%clk 0:01:28.1]} 15... Qb6 {[%clk 0:02:26.8]} 16. Na4 {[%clk 0:01:24.4]} 16...
Qd4 {[%clk 0:02:25.5]} 17. Bd6 {[%clk 0:01:03.3]} 17... Qxa4 {[%clk 0:02:10.7]}
18. Bxf8 {[%clk 0:01:02.9]} 18... Rxf8 {[%clk 0:02:11.6]} 19. b3 {[%clk
0:00:57.9]} 19... Qe4 {[%clk 0:02:09.7]} 20. Qxe4 {[%clk 0:00:54.8]} 20... Nxe4
{[%clk 0:02:10.6]} 21. Rad1 {[%clk 0:00:50.5]} 21... Rd8 {[%clk 0:01:53]} 22. a4
{[%clk 0:00:45.4]} 22... c5 {[%clk 0:01:50]} 23. Rfe1 {[%clk 0:00:38.5]} 23...
Bd4 {[%clk 0:01:45.5]} 24. Rf1 {[%clk 0:00:34.3]} 24... Nxf2 {[%clk 0:01:43.6]}
25. Rxf2 {[%clk 0:00:33.6]} 25... Rf8 {[%clk 0:01:38]} 26. Rxd4 {[%clk
0:00:33.2]} 26... cxd4 {[%clk 0:01:27.9]} 27. Re2 {[%clk 0:00:26.5]} 27... Rc8
{[%clk 0:01:24.1]} 28. Kf1 {[%clk 0:00:23]} 28... Kf7 {[%clk 0:01:21.9]} 29.
Rf2+ {[%clk 0:00:21.9]} 29... Ke7 {[%clk 0:01:20.5]} 30. Ke1 {[%clk 0:00:22.4]}
30... d3 {[%clk 0:01:14.5]} 31. cxd3 {[%clk 0:00:20.7]} 31... Rc3 {[%clk
0:01:15.1]} 32. Re2+ {[%clk 0:00:18.6]} 32... Kd6 {[%clk 0:01:14.7]} 33. Rf2
{[%clk 0:00:16.7]} 33... Rxd3 {[%clk 0:01:07]} 34. Rf7 {[%clk 0:00:16.9]} 34...
Rxb3 {[%clk 0:01:07.6]} 35. Rxh7 {[%clk 0:00:17.3]} 35... Ke5 {[%clk 0:01:03.1]}
36. h4 {[%clk 0:00:17]} 36... Kf4 {[%clk 0:01:02.8]} 37. Rh6 {[%clk 0:00:15.9]}
37... Ke3 {[%clk 0:01:01.6]} 38. Kd1 {[%clk 0:00:15]} 38... Rb1+ {[%clk
0:00:59.8]} 39. Kc2 {[%clk 0:00:15.4]} 39... Rb6 {[%clk 0:00:59.8]} 40. g4
{[%clk 0:00:13.7]} 40... d4 {[%clk 0:00:58.2]} 41. h5 {[%clk 0:00:13.7]} 41...
d3+ {[%clk 0:00:58.6]} 42. Kc3 {[%clk 0:00:12.8]} 42... Rc6+ {[%clk 0:00:59]}
43. Kb4 {[%clk 0:00:12.2]} 43... d2 {[%clk 0:00:59.1]} 44. hxg6 {[%clk
0:00:12.2]} 44... d1=Q {[%clk 0:00:58.2]} 0-1